bitfinex/quotes_BTCUSD_20230906
["timestamp","ask_amount","ask_price","bid_price","bid_amount"]
[1694006423374,6.72411087,25722.0,25721.0,0.005]
[1694006423702,6.72387087,25722.0,25721.0,0.005]
[1694006424009,6.72279087,25722.0,25721.0,0.005]
[1694006424237,6.72291087,25722.0,25721.0,0.005]
[1694006424410,6.72507087,25722.0,25721.0,0.005]
[1694006424670,6.72387087,25722.0,25721.0,0.005]
[1694006424882,6.72315087,25722.0,25721.0,0.005]
[1694006425077,6.71883087,25722.0,25721.0,0.005]
[1694006425281,6.71907087,25722.0,25721.0,0.005]
[1694006425514,6.71859087,25722.0,25721.0,0.005]
[1694006425688,6.71715087,25722.0,25721.0,0.005]
[1694006425898,6.71943087,25722.0,25721.0,0.005]
[1694006426306,6.71967087,25722.0,25721.0,0.005]
[1694006426506,6.72003087,25722.0,25721.0,0.005]
[1694006427027,6.71991087,25722.0,25721.0,0.005]
[1694006427227,6.72123087,25722.0,25721.0,0.005]
[1694006427412,6.72147087,25722.0,25721.0,0.005]
[1694006427813,6.72243087,25722.0,25721.0,0.005]
[1694006428018,6.73431087,25722.0,25721.0,0.005]
[1694006428333,6.74763087,25722.0,25721.0,0.005]
[1694006428531,6.74655087,25722.0,25721.0,0.005]
[1694006428686,6.75099087,25722.0,25721.0,0.005]
[1694006428894,6.75051087,25722.0,25721.0,0.005]
[1694006429098,6.75075087,25722.0,25721.0,0.005]
[1694006429321,6.74715087,25722.0,25721.0,0.005]
[1694006429530,6.75063087,25722.0,25721.0,0.005]
[1694006429727,6.74463087,25722.0,25721.0,0.005]
[1694006429938,6.74211087,25722.0,25721.0,0.005]
[1694006430182,6.73947087,25722.0,25721.0,0.005]
[1694006430656,6.73935087,25722.0,25721.0,0.005]
[1694006431264,6.73947087,25722.0,25721.0,0.005]
[1694006431475,6.73923087,25722.0,25721.0,0.005]
[1694006431699,6.74943087,25722.0,25721.0,0.005]
[1694006431856,6.75207087,25722.0,25721.0,0.005]
[1694006432074,6.55743087,25722.0,25721.0,0.005]
[1694006432275,6.55767087,25722.0,25721.0,0.005]
[1694006432520,1.46,25717.0,25716.0,0.1883]
[1694006432854,4.57880361,25717.0,25716.0,0.18446432]
[1694006433012,2.333268,25715.0,25714.0,0.03154456]
[1694006433218,1.4,25712.0,25711.0,0.03885]
[1694006433418,1.92620502,25712.0,25711.0,0.03885]
[1694006433619,1.92620502,25712.0,25711.0,0.03385]
[1694006433822,2.70405102,25712.0,25711.0,0.03385]
[1694006434022,3.48189702,25712.0,25711.0,0.02885]
[1694006434232,3.48189702,25712.0,25711.0,0.06053606]
[1694006434573,3.48189702,25712.0,25711.0,0.02885]
[1694006434690,3.57493562,25712.0,25711.0,0.02885]
[1694006435714,4.21322187,25712.0,25711.0,0.02885]
[1694006435922,4.35278162,25712.0,25711.0,0.02885]
[1694006436345,4.21722187,25712.0,25711.0,0.06685]
[1694006436549,4.28692972,25712.0,25711.0,0.06685]
[1694006436870,4.28692972,25712.0,25711.0,0.038]
[1694006439427,4.33145087,25712.0,25711.0,0.014]
[1694006439663,4.42248238,25712.0,25709.0,0.1]
[1694006439855,3.89827736,25712.0,25711.0,0.024]
[1694006440056,3.90027736,25712.0,25711.0,0.037]
[1694006440396,3.90027736,25712.0,25711.0,0.024]
[1694006440606,3.89827736,25712.0,25711.0,0.024]
[1694006440807,3.90027736,25712.0,25711.0,0.024]
[1694006441403,3.89827736,25712.0,25711.0,0.024]
[1694006442951,3.90027736,25712.0,25711.0,0.037]
[1694006443781,4.67812336,25712.0,25711.0,0.037]
[1694006445279,3.77812336,25712.0,25711.0,0.037]
[1694006445485,4.67812336,25712.0,25711.0,0.037]
[1694006446063,4.28692263,25712.0,25711.0,0.037]
[1694006446305,4.26374302,25712.0,25711.0,0.037]
[1694006446783,4.32460272,25712.0,25711.0,0.037]
[1694006446992,1.88368711,25712.0,25711.0,0.037]
[1694006447247,1.88368711,25712.0,25711.0,0.814877]
[1694006447659,2.02324686,25712.0,25711.0,0.037]
[1694006449747,1.88368711,25712.0,25711.0,0.037]
[1694006449950,2.02324686,25712.0,25711.0,0.037]
[1694006450194,2.02324686,25712.0,25711.0,0.814877]
[1694006450701,2.02324686,25712.0,25711.0,0.037]
[1694006450913,2.02324686,25712.0,25711.0,0.814877]
[1694006451315,2.02324686,25712.0,25711.0,0.037]
[1694006451748,1.93020502,25712.0,25711.0,0.037]
[1694006453100,2.70805102,25712.0,25711.0,0.037]
[1694006453520,2.76890979,25712.0,25711.0,0.037]
[1694006453721,2.95498945,25712.0,25711.0,0.037]
[1694006455730,3.5932757,25712.0,25711.0,0.037]
[1694006457601,3.82587528,25712.0,25711.0,0.037]
[1694006458839,3.63979562,25712.0,25711.0,0.037]
[1694006460977,4.41764162,25712.0,25711.0,0.037]
[1694006462665,4.58742763,25712.0,25711.0,0.037]
[1694006470017,3.80958163,25712.0,25711.0,0.037]
[1694006472721,3.57698205,25712.0,25711.0,0.037]
[1694006476616,1.85150404,25712.0,25711.0,0.037]
[1694006476792,1.85150404,25712.0,25711.0,0.814877]
[1694006478248,1.85150404,25712.0,25711.0,0.037]
[1694006479048,1.85150404,25712.0,25711.0,0.814877]
[1694006479264,1.85150404,25712.0,25711.0,1.592754]
[1694006479775,1.85150404,25712.0,25711.0,0.814877]
[1694006485144,1.85150404,25712.0,25711.0,1.592754]
[1694006485344,1.85150404,25712.0,25711.0,0.814877]
[1694006485592,1.85150404,25712.0,25711.0,0.037]
[1694006485790,1.85150404,25712.0,25711.0,0.814877]
[1694006487902,1.85150404,25712.0,25711.0,1.592754]
[1694006488143,1.85150404,25712.0,25711.0,2.370631]
[1694006488347,1.85150404,25712.0,25711.0,1.592754]
[1694006490104,1.85150404,25712.0,25711.0,0.814877]
[1694006490773,1.85150404,25712.0,25711.0,0.037]
[1694006491384,2.62935004,25712.0,25711.0,0.037]
[1694006495237,3.40719604,25712.0,25711.0,0.037]
[1694006495470,4.24090072,25712.0,25711.0,0.037]
[1694006498478,5.49469135,25712.0,25711.0,0.037]
[1694006498722,5.69937662,25712.0,25711.0,0.037]
[1694006498938,5.69325662,25712.0,25711.0,0.037]
[1694006499164,5.69295662,25712.0,25711.0,0.037]
[1694006499414,5.69265662,25712.0,25711.0,0.037]
[1694006499650,5.69053662,25712.0,25711.0,0.013]
[1694006499880,5.69017662,25712.0,25711.0,0.013]
[1694006500199,5.69281662,25712.0,25711.0,0.013]
[1694006500284,5.69125662,25712.0,25711.0,0.013]
[1694006500496,0.9,25709.0,25708.0,0.877958]
[1694006500711,0.9,25709.0,25708.0,1.655907]
[1694006500712,1.47301149,25709.0,25708.0,1.655907]
[1694006500917,1.47301149,25709.0,25708.0,1.605907]
[1694006501130,1.47301149,25709.0,25708.0,1.555907]
[1694006501342,1.6127858,25709.0,25708.0,1.555907]
[1694006502397,1.6147858,25709.0,25708.0,1.567907]
[1694006503235,1.6167858,25709.0,25708.0,1.591907]
[1694006503871,1.43041958,25709.0,25708.0,2.369874]
[1694006504888,0.14377431,25709.0,25708.0,3.147841]
[1694006505923,0.14324151,25709.0,25708.0,3.147841]
[1694006506131,0.09717776,25709.0,25708.0,3.5975051]
[1694006506761,0.09717776,25709.0,25708.0,3.268641]
[1694006510828,0.09717776,25709.0,25708.0,4.046608]
[1694006511035,0.004,25709.0,25708.0,5.22235327]
[1694006511242,0.09317776,25713.0,25712.0,3.111384]
[1694006511456,0.09317776,25713.0,25712.0,4.36102651]
[1694006511668,0.09317776,25713.0,25712.0,4.2063684]
[1694006511872,0.18636622,25715.0,25712.0,4.5463684]
[1694006511873,0.09317776,25714.0,25712.0,4.5463684]
[1694006512077,0.09317776,25714.0,25713.0,0.1208]
[1694006512250,0.09317776,25714.0,25713.0,3.50755495]
[1694006512459,0.09317776,25715.0,25713.0,3.50755495]
[1694006512666,0.09317776,25715.0,25714.0,0.1208]
[1694006512919,0.09317776,25715.0,25714.0,3.231944]
[1694006513121,0.09317776,25715.0,25714.0,3.03744391]
[1694006513298,0.09317776,25715.0,25714.0,3.15824391]
[1694006513719,0.09317776,25715.0,25714.0,3.231944]
[1694006514120,0.09717776,25715.0,25714.0,3.231944]
[1694006514333,0.09317776,25715.0,25714.0,3.231944]
[1694006514742,0.09317776,25715.0,25714.0,3.235944]
[1694006515335,0.25283384,25716.0,25714.0,3.235944]
[1694006515583,0.25283384,25716.0,25715.0,0.1208]
[1694006515787,0.25283384,25716.0,25715.0,3.03733904]
[1694006516225,0.25283384,25716.0,25715.0,3.111024]
[1694006516435,0.11317776,25716.0,25715.0,3.231824]
[1694006517048,0.09317776,25716.0,25715.0,3.61846927]
[1694006517260,0.09317776,25717.0,25715.0,3.231824]
[1694006517473,0.1429734,25718.0,25716.0,0.1208]
[1694006517687,0.1429734,25718.0,25717.0,3.23158]
[1694006518485,0.04979564,25718.0,25717.0,3.23158]
[1694006518802,0.25283384,25719.0,25717.0,3.23158]
[1694006519049,0.25283384,25719.0,25718.0,0.1208]
[1694006519262,0.25283384,25719.0,25718.0,2.453795]
[1694006519474,0.09317776,25721.0,25719.0,0.06]
[1694006519698,0.001,25722.0,25720.0,2.594412]
[1694006519903,0.001,25722.0,25721.0,0.30890701]
[1694006520115,0.001,25722.0,25721.0,1.555148]
[1694006520335,0.001,25722.0,25721.0,2.332722]
[1694006520543,0.001,25722.0,25721.0,2.453522]
[1694006520754,0.00011759,25722.0,25721.0,2.453522]
[1694006520991,0.00011759,25722.0,25721.0,2.30010789]
[1694006521611,0.00011759,25722.0,25721.0,2.41457548]
[1694006521815,0.00011759,25722.0,25721.0,2.41757548]
[1694006522235,0.00011759,25722.0,25721.0,2.42057548]
[1694006522443,0.00011759,25722.0,25721.0,2.30610789]
[1694006525006,0.00011759,25722.0,25721.0,3.08368189]
[1694006525242,0.00011759,25722.0,25721.0,3.46368189]
[1694006526760,0.00011759,25722.0,25721.0,4.25942716]
[1694006526971,0.00011759,25722.0,25721.0,4.66907243]
[1694006528371,0.00011759,25722.0,25721.0,4.25942716]
[1694006539676,0.1,25727.0,25722.0,0.06]
[1694006539883,0.1,25727.0,25723.0,4.42879838]
[1694006540092,0.1,25727.0,25726.0,0.1208]
[1694006540298,0.1,25727.0,25726.0,3.230492]
[1694006540502,0.1,25727.0,25726.0,3.5535412]
[1694006540913,0.124,25727.0,25726.0,3.5535412]
[1694006541547,0.024,25727.0,25726.0,3.5535412]
[1694006541751,0.1,25727.0,25726.0,3.40017296]
[1694006542235,0.124,25727.0,25726.0,3.40217296]
[1694006542372,0.138,25727.0,25726.0,3.40417296]
[1694006542577,0.138,25727.0,25726.0,3.08112376]
[1694006544120,0.114,25727.0,25726.0,3.07912376]
[1694006544294,0.1,25727.0,25726.0,3.07712376]
[1694006544498,0.1,25727.0,25726.0,3.07912376]
[1694006544499,0.124,25727.0,25726.0,3.07912376]
[1694006544718,0.024,25727.0,25726.0,3.08212376]
[1694006545601,0.1645,25728.0,25726.0,3.08012376]
[1694006545785,0.1645,25728.0,25727.0,0.1208]
[1694006545987,0.1645,25728.0,25727.0,3.230372]
[1694006547602,0.1705,25728.0,25727.0,3.230372]
[1694006548437,0.1705,25728.0,25727.0,3.109572]
[1694006548641,0.1705,25728.0,25727.0,0.777393]
[1694006549198,0.1755,25728.0,25727.0,0.777393]
[1694006549398,0.1755,25728.0,25727.0,1.554786]
[1694006550644,0.1755,25728.0,25727.0,2.332179]
[1694006553700,0.1755,25728.0,25727.0,1.554786]
[1694006554217,0.1755,25728.0,25727.0,2.332179]
[1694006555204,0.1755,25728.0,25727.0,1.554786]
[1694006555734,0.2355,25728.0,25727.0,1.554786]
[1694006556722,0.2555,25728.0,25727.0,1.554786]
[1694006557548,0.2555,25728.0,25727.0,0.777393]
[1694006559184,1.96224754,25728.0,25726.0,0.777395]
[1694006559391,0.08,25726.0,25724.0,0.777473]
[1694006559543,0.857426,25726.0,25724.0,0.777473]
[1694006559740,0.857426,25726.0,25724.0,0.777482]
[1694006560173,0.08,25726.0,25724.0,1.554966]
[1694006560743,2.16506827,25726.0,25724.0,0.011]
[1694006560947,0.2208,25725.0,25724.0,0.011]
[1694006561127,0.998253,25725.0,25724.0,0.011]
[1694006561368,2.05693588,25725.0,25724.0,0.011]
[1694006561997,2.05693588,25725.0,25724.0,0.023]
[1694006562414,2.05693588,25725.0,25724.0,0.011]
[1694006562605,2.06193588,25725.0,25724.0,0.011]
[1694006563006,2.06193588,25725.0,25723.0,1.555007]
[1694006563385,2.06693588,25725.0,25723.0,0.777501]
[1694006564211,0.02448543,25724.0,25723.0,0.777501]
[1694006564415,0.12448543,25724.0,25723.0,0.777501]
[1694006565234,0.1,25724.0,25723.0,1.555015]
[1694006565615,0.1,25724.0,25723.0,1.559015]
[1694006566448,0.1,25724.0,25723.0,1.562015]
[1694006567081,0.06,25724.0,25723.0,1.562015]
[1694006567287,0.1,25724.0,25723.0,1.562015]
[1694006569397,0.19317776,25724.0,25723.0,1.562015]
[1694006570394,0.23965608,25724.0,25723.0,1.562015]
[1694006570939,0.23965608,25724.0,25723.0,0.784501]
[1694006571138,1.01714008,25724.0,25723.0,0.784501]
[1694006571298,1.2035063,25724.0,25723.0,0.784501]
[1694006572542,1.06385022,25724.0,25723.0,0.784501]
[1694006573328,1.12468336,25724.0,25723.0,0.784501]
[1694006573531,1.35764114,25724.0,25723.0,0.784501]
[1694006574432,0.39379092,25724.0,25723.0,0.784501]
[1694006574825,0.39379092,25724.0,25723.0,1.562015]
[1694006575414,0.16083314,25724.0,25723.0,1.562015]
[1694006578954,0.16083314,25724.0,25723.0,2.339529]
[1694006578955,0.33280309,25724.0,25723.0,2.339529]
[1694006580644,0.3936339,25724.0,25723.0,2.339529]
[1694006585194,0.39422533,25724.0,25723.0,2.339529]
[1694006585401,0.16027435,25724.0,25723.0,3.5795484]
[1694006585599,0.23339565,25724.0,25723.0,3.5795484]
[1694006585852,0.23339565,25724.0,25723.0,4.34619367]
[1694006585853,0.00059143,25724.0,25723.0,4.34619367]
[1694006586666,0.00059143,25724.0,25723.0,4.34219367]
[1694006586833,0.00059143,25724.0,25723.0,4.33919367]
[1694006587209,0.00059143,25724.0,25723.0,4.34119367]
[1694006587432,0.00059143,25724.0,25723.0,4.33919367]
[1694006587653,0.00059143,25724.0,25723.0,4.74829367]
[1694006587871,0.41904256,25729.0,25726.0,0.04]
[1694006587872,0.33280422,25729.0,25726.0,0.04]
[1694006588092,0.0931213,25729.0,25728.0,0.2416]
[1694006588310,0.38224828,25730.0,25728.0,2.33762938]
[1694006588527,0.38224828,25730.0,25729.0,0.1208]
[1694006588786,0.38224194,25730.0,25729.0,2.452796]
[1694006588997,0.38224194,25730.0,25729.0,3.230128]
[1694006588998,0.33279788,25730.0,25729.0,3.230128]
[1694006589242,0.33279788,25730.0,25729.0,3.61677327]
[1694006589490,0.19311496,25730.0,25729.0,3.61677327]
[1694006590114,0.1,25730.0,25729.0,3.61677327]
[1694006590330,0.18623947,25732.0,25731.0,0.4491]
[1694006590331,0.23279788,25732.0,25731.0,0.4491]
[1694006590569,0.09311496,25734.0,25732.0,0.04]
[1694006590831,0.40156255,25735.0,25733.0,1.554424]
[1694006591047,0.16876467,25735.0,25734.0,0.1208]
[1694006591307,0.06876467,25735.0,25734.0,2.94943172]
[1694006591522,0.06876467,25735.0,25734.0,3.11477361]
[1694006592166,0.06876467,25735.0,25734.0,2.772343]
[1694006592620,0.0197,25735.0,25734.0,2.774343]
[1694006592971,0.0197,25735.0,25734.0,2.772343]
[1694006593178,0.0197,25735.0,25734.0,2.752343]
[1694006594183,0.0217,25735.0,25734.0,2.776343]
[1694006594384,0.0217,25735.0,25734.0,3.04210663]
[1694006595063,0.0217,25735.0,25734.0,2.776343]
[1694006595275,0.0217,25735.0,25734.0,2.801343]
[1694006595483,0.0217,25735.0,25734.0,2.83209249]
[1694006595690,0.0217,25735.0,25734.0,2.93209249]
[1694006596967,0.0217,25735.0,25734.0,2.77877193]
[1694006597222,0.0217,25735.0,25734.0,2.74802244]
[1694006597425,0.0217,25735.0,25734.0,2.86882244]
[1694006597633,0.0217,25735.0,25734.0,2.76882244]
[1694006598040,0.0217,25735.0,25734.0,3.54600344]
[1694006598257,0.0217,25735.0,25734.0,3.42520344]
[1694006598445,0.0217,25735.0,25734.0,2.64802244]
[1694006608770,0.0817,25735.0,25734.0,2.64802244]
[1694006609112,0.1017,25735.0,25734.0,2.64802244]
[1694006609720,0.1017,25735.0,25734.0,3.42520344]
[1694006609957,0.1017,25735.0,25734.0,2.64802244]
[1694006610595,0.1017,25735.0,25734.0,3.42520344]
[1694006610775,0.0517,25735.0,25734.0,3.42520344]
[1694006615697,0.0717,25735.0,25734.0,3.42520344]
[1694006619363,0.0517,25735.0,25734.0,3.42520344]
[1694006619539,0.0717,25735.0,25734.0,3.42520344]
[1694006619972,0.0717,25735.0,25734.0,3.78780378]
[1694006621207,0.0717,25735.0,25734.0,3.42520344]
[1694006626269,0.0517,25735.0,25734.0,3.42520344]
[1694006626404,0.0717,25735.0,25734.0,3.42520344]
[1694006631373,0.13250794,25735.0,25734.0,3.42520344]
[1694006631573,0.0717,25735.0,25734.0,3.42520344]
[1694006631798,0.13250788,25735.0,25734.0,3.42520344]
[1694006634074,0.13250788,25735.0,25734.0,2.64802244]
[1694006635313,0.13250788,25735.0,25734.0,3.42520344]
[1694006639336,0.13250788,25735.0,25734.0,3.54600344]
[1694006639774,0.22562284,25735.0,25734.0,3.54600344]
[1694006642726,0.4621908,25735.0,25734.0,3.54600344]
[1694006642942,0.55546099,25735.0,25734.0,3.54600344]
[1694006643408,0.35497019,25735.0,25734.0,3.54600344]
[1694006643614,0.2617,25735.0,25734.0,3.93264871]
[1694006644052,0.49465311,25735.0,25734.0,3.93264871]
[1694006644255,0.35497019,25735.0,25734.0,3.93264871]
[1694006645831,0.35497019,25735.0,25734.0,4.31929398]
[1694006646041,0.35497019,25735.0,25734.0,4.72839398]
[1694006646366,0.19,25735.0,25734.0,4.72839398]
[1694006646954,0.21,25735.0,25734.0,4.72839398]
[1694006647331,0.19,25735.0,25734.0,4.78839398]
[1694006647759,0.19,25735.0,25734.0,4.80839398]
[1694006652427,0.19,25735.0,25734.0,4.85134962]
[1694006652778,0.0397,25737.0,25736.0,0.4691]
[1694006652779,0.0197,25737.0,25736.0,0.4691]
[1694006652961,0.0397,25737.0,25736.0,5.54879554]
[1694006653160,0.0397,25737.0,25736.0,5.66959554]
[1694006653421,0.0197,25737.0,25736.0,5.68959554]
[1694006653623,0.0197,25738.0,25736.0,5.68959554]
[1694006653624,0.0197,25738.0,25737.0,0.4691]
[1694006653846,0.0197,25738.0,25737.0,4.42790927]
[1694006654026,0.0197,25738.0,25737.0,4.81455454]
[1694006654957,0.0197,25738.0,25737.0,4.93547954]
[1694006655147,0.0197,25738.0,25737.0,4.96047954]
[1694006655955,0.0207,25738.0,25737.0,4.98547954]
[1694006656885,0.0207,25738.0,25737.0,4.96247954]
[1694006657094,0.0207,25738.0,25737.0,4.57583427]
[1694006659084,0.0207,25738.0,25737.0,4.60684755]
[1694006665197,0.0207,25738.0,25737.0,4.19774755]
[1694006665402,0.0207,25738.0,25737.0,3.81110228]
[1694006666481,0.0207,25738.0,25737.0,3.79110228]
[1694006666650,0.0207,25738.0,25737.0,2.77228628]
[1694006666651,0.21702521,25738.0,25737.0,2.77228628]
[1694006666852,0.21702521,25738.0,25737.0,3.54937728]
[1694006667442,0.21702521,25738.0,25737.0,3.52937728]
[1694006668783,0.21702521,25738.0,25737.0,3.48937728]
[1694006668988,0.21702521,25738.0,25737.0,3.52937728]
[1694006670222,0.21702521,25738.0,25737.0,3.48937728]
[1694006670401,0.21702521,25738.0,25737.0,3.52937728]
[1694006670801,0.0924,25738.0,25737.0,3.52937728]
[1694006672729,0.0924,25738.0,25737.0,1.97519528]
[1694006672933,0.0924,25738.0,25737.0,0.42101328]
[1694006673131,0.14269325,25738.0,25737.0,0.39]
[1694006673335,0.14269325,25738.0,25737.0,0.35]
[1694006673544,0.14269325,25738.0,25737.0,0.39]
[1694006674203,0.0924,25738.0,25737.0,0.39]
[1694006677897,0.0924,25738.0,25737.0,0.35]
[1694006679555,0.0924,25738.0,25737.0,1.167091]
[1694006679754,0.0924,25738.0,25737.0,1.944182]
[1694006680544,0.0924,25738.0,25737.0,2.77876844]
[1694006680732,0.0924,25738.0,25737.0,2.721273]
[1694006681336,0.0924,25738.0,25737.0,2.701273]
[1694006681961,0.0924,25738.0,25737.0,3.599164]
[1694006685155,0.0924,25738.0,25737.0,3.579164]
[1694006685329,0.0924,25738.0,25737.0,3.98580927]
[1694006686601,0.0924,25738.0,25737.0,4.37245454]
[1694006686801,0.0924,25738.0,25737.0,4.35245454]
[1694006688698,0.0924,25738.0,25737.0,4.76155454]
[1694006692190,0.0924,25738.0,25737.0,4.79273511]
[1694006695426,0.0207,25738.0,25737.0,4.85273511]
[1694006695863,0.0207,25738.0,25737.0,4.87573511]
[1694006700410,0.0207,25738.0,25737.0,4.85273511]
[1694006700783,0.0207,25738.0,25737.0,4.9103874]
[1694006705764,0.0207,25738.0,25737.0,4.5012874]
[1694006705970,0.0207,25738.0,25737.0,4.11464213]
[1694006707149,0.0207,25738.0,25737.0,3.67034457]
[1694006712278,0.0207,25738.0,25737.0,2.87325357]
[1694006712279,0.0924,25738.0,25737.0,2.87325357]
[1694006712488,0.0924,25738.0,25737.0,2.75245357]
[1694006713316,0.0924,25738.0,25737.0,1.97536257]
[1694006713518,0.0924,25738.0,25737.0,1.19827157]
[1694006714243,0.0924,25738.0,25737.0,1.904182]
[1694006714441,0.0924,25738.0,25737.0,1.944182]
[1694006715513,0.0924,25738.0,25737.0,2.721273]
[1694006717804,0.0924,25738.0,25737.0,2.701273]
[1694006720997,0.0924,25738.0,25737.0,2.681273]
[1694006721184,0.0924,25738.0,25737.0,2.701273]
[1694006725345,0.0924,25738.0,25737.0,2.681273]
[1694006726872,0.0924,25738.0,25737.0,2.71301699]
[1694006730947,0.22893437,25738.0,25737.0,1.93592599]
[1694006733162,0.30644054,25738.0,25737.0,0.05]
[1694006733363,0.76017614,25738.0,25737.0,0.05]
[1694006733588,0.6669356,25738.0,25737.0,0.05]
[1694006733774,0.69942997,25738.0,25737.0,0.05]
[1694006733918,0.69842997,25738.0,25737.0,0.025]
[1694006734125,0.55856916,25738.0,25737.0,0.025]
[1694006734727,0.0117,25737.0,25736.0,1.554213]
[1694006734931,0.0717,25737.0,25736.0,1.554213]
[1694006735131,0.0717,25737.0,25736.0,1.554225]
[1694006735803,0.0717,25737.0,25736.0,1.562225]
[1694006736360,0.0717,25737.0,25736.0,1.572225]
[1694006741427,0.22024673,25737.0,25736.0,1.572225]
[1694006741673,0.42090687,25737.0,25736.0,0.018]
[1694006742017,0.36565034,25737.0,25736.0,0.018]
[1694006742416,0.60823566,25737.0,25736.0,0.018]
[1694006742621,0.48645034,25737.0,25736.0,0.018]
[1694006742830,1.21687141,25737.0,25736.0,0.018]
[1694006743077,3.36965895,25737.0,25736.0,0.01]
[1694006743266,4.68824995,25737.0,25736.0,0.01]
[1694006743458,4.68824995,25737.0,25736.0,0.012]
[1694006743459,4.5010886,25737.0,25736.0,0.012]
[1694006743665,4.4958686,25737.0,25736.0,0.012]
[1694006743871,4.4947286,25737.0,25736.0,0.012]
[1694006744084,4.4953886,25737.0,25736.0,0.002]
[1694006744285,4.4967686,25737.0,25736.0,0.002]
[1694006744491,4.4945486,25737.0,25736.0,0.003]
[1694006744701,4.6482286,25737.0,25736.0,0.002]
[1694006744906,5.4325196,25737.0,25736.0,0.002]
[1694006745105,5.4325196,25737.0,25736.0,0.004]
[1694006745106,5.67951245,25737.0,25736.0,0.004]
[1694006745314,5.68263245,25737.0,25736.0,0.004]
[1694006745514,5.69413245,25737.0,25736.0,0.002]
[1694006745721,5.4655796,25737.0,25736.0,0.002]
[1694006745919,5.4664196,25737.0,25736.0,0.002]
[1694006746126,5.66327486,25737.0,25736.0,0.004]
[1694006746328,5.66321486,25737.0,25736.0,0.004]
[1694006746534,5.64835486,25737.0,25736.0,0.002]
[1694006746734,6.54757486,25737.0,25736.0,0.002]
[1694006746990,6.55745486,25737.0,25736.0,0.004]
[1694006747182,6.70616368,25737.0,25736.0,0.004]
[1694006747382,6.51177368,25737.0,25736.0,0.004]
[1694006747663,6.51141368,25737.0,25736.0,0.004]
[1694006747864,6.51129368,25737.0,25736.0,0.004]
[1694006748114,6.46491824,25737.0,25736.0,0.004]
[1694006748322,7.36062824,25737.0,25736.0,0.004]
[1694006748499,7.35918824,25737.0,25736.0,0.004]
[1694006748701,7.35912824,25737.0,25736.0,0.004]
[1694006749054,7.35876824,25737.0,25736.0,0.004]
[1694006749256,7.0713796,25737.0,25736.0,0.004]
[1694006749546,7.0710196,25737.0,25736.0,0.004]
[1694006749778,7.0712596,25737.0,25736.0,0.004]
[1694006749984,7.2663096,25737.0,25736.0,0.004]
[1694006750175,7.2660696,25737.0,25736.0,0.004]
[1694006750629,7.2658296,25737.0,25736.0,0.004]
[1694006750838,7.2657096,25737.0,25736.0,0.004]
[1694006751045,7.0660396,25737.0,25736.0,0.004]
[1694006751251,7.0663996,25737.0,25736.0,0.004]
[1694006751456,7.2634896,25737.0,25736.0,0.004]
[1694006751657,7.2627096,25737.0,25736.0,0.004]
[1694006751880,7.2871496,25737.0,25736.0,0.004]
[1694006752055,7.2815096,25737.0,25736.0,0.004]
[1694006752286,7.2812096,25737.0,25736.0,0.004]
[1694006752491,7.2809196,25737.0,25736.0,0.004]
[1694006752646,7.2812796,25737.0,25736.0,0.004]
[1694006753048,7.2811596,25737.0,25736.0,0.004]
[1694006753248,7.22030027,25737.0,25736.0,0.004]
[1694006753451,7.22378027,25737.0,25736.0,0.004]
[1694006753700,7.22456027,25737.0,25736.0,0.004]
[1694006753900,7.22420027,25737.0,25736.0,0.004]
[1694006754109,7.22408027,25737.0,25736.0,0.004]
[1694006754531,7.22546027,25737.0,25736.0,0.004]
[1694006754703,7.22600027,25737.0,25736.0,0.004]
[1694006754904,7.29082985,25737.0,25736.0,0.004]
[1694006755106,7.23314027,25737.0,25736.0,0.004]
[1694006755319,7.23320027,25737.0,25736.0,0.004]
[1694006755490,7.23596027,25737.0,25736.0,0.004]
[1694006755714,7.23644027,25737.0,25736.0,0.004]
[1694006755929,7.23230027,25737.0,25736.0,0.004]
[1694006756097,7.23806027,25737.0,25736.0,0.004]
[1694006756307,7.23848027,25737.0,25736.0,0.004]
[1694006756480,7.23560027,25737.0,25736.0,0.004]
[1694006756680,7.23884027,25737.0,25736.0,0.004]
[1694006756929,7.23470027,25737.0,25736.0,0.004]
[1694006757131,7.22762027,25737.0,25736.0,0.004]
[1694006757348,7.22684027,25737.0,25736.0,0.004]
[1694006757522,7.22720027,25737.0,25736.0,0.004]
[1694006757689,7.22684027,25737.0,25736.0,0.004]
[1694006757886,6.52378027,25737.0,25736.0,0.004]
[1694006758092,6.51910027,25737.0,25736.0,0.004]
[1694006758313,6.51904027,25737.0,25736.0,0.004]
[1694006758523,6.51958027,25737.0,25736.0,0.004]
[1694006758742,6.51970027,25737.0,25736.0,0.004]
[1694006758946,6.51988027,25737.0,25736.0,0.004]
[1694006759205,6.52006027,25737.0,25736.0,0.004]
[1694006759354,6.51988027,25737.0,25736.0,0.004]
[1694006759572,6.52060027,25737.0,25736.0,0.004]
[1694006759768,6.52084027,25737.0,25736.0,0.004]
[1694006759995,6.52156027,25737.0,25736.0,0.004]
[1694006760240,6.52174027,25737.0,25736.0,0.004]
[1694006760472,6.58273271,25737.0,25736.0,0.004]
[1694006760676,6.58285271,25737.0,25736.0,0.004]
[1694006760850,6.58303271,25737.0,25736.0,0.004]
[1694006761079,6.58315271,25737.0,25736.0,0.004]
[1694006761258,6.58327271,25737.0,25736.0,0.004]
[1694006761468,6.58345271,25737.0,25736.0,0.004]
[1694006761671,6.58315271,25737.0,25736.0,0.004]
[1694006762011,5.74434927,25737.0,25736.0,0.004]
[1694006762252,5.71782927,25737.0,25736.0,0.004]
[1694006762460,4.70788927,25737.0,25736.0,0.004]
[1694006762672,5.60788927,25737.0,25736.0,0.004]
[1694006763102,5.67682927,25737.0,25736.0,0.004]
[1694006763308,5.60788927,25737.0,25736.0,0.004]
[1694006764125,5.41360927,25737.0,25736.0,0.004]
[1694006764568,5.48032927,25737.0,25736.0,0.004]